lending/lending_fUSD_20240111
["ID","MTS","AMOUNT","RATE_DAILY","PERIOD"]
[311162752,1704949838797,-236.36567632,0.0003649,2]
[311162754,1704949838807,-150.0,0.00036554,2]
[311162756,1704949838817,-150.0,0.00036575,2]
[311162758,1704949838828,-154.34,0.0003659,2]
[311162760,1704949838838,-150.0,0.00036605,2]
[311162762,1704949838847,-240.74,0.00036605,2]
[311162764,1704949838858,-150.0,0.00036626,2]
[311162766,1704949838868,-150.0,0.00036678,2]
[311162768,1704949838877,-150.0,0.00036679,2]
[311162770,1704949838887,-534.72694267,0.00036698,8]
[311162772,1704949838898,-150.0,0.00036729,2]
[311162774,1704949838907,-154.52,0.00036729,2]
[311162776,1704949838918,-318.97395675,0.00036734,4]
[311162778,1704949838928,-661.1202133,0.0003674,9]
[311162780,1704949838938,-1641.6568773,0.00036748,4]
[311162782,1704949838948,-169.41033295,0.00036748,4]
[311162784,1704949838958,-307.73417923,0.00036748,4]
[311162785,1704949838968,-784.25581664,0.00036748,2]
[311162787,1704949838977,-471.82347218,0.00036748,4]
[311162790,1704949838987,-1465.44331119,0.00036749,4]
[311162791,1704949838997,-163.19307796,0.00036798,2]
[311162794,1704949839007,-5109.2378,0.000368,30]
[311162796,1704949839017,-200.0,0.00036809,10]
[311162797,1704949839027,-800.0,0.00036809,10]
[311162799,1704949839037,-200.0,0.0003681,10]
[311162801,1704949839047,-800.0,0.0003681,10]
[311162803,1704949839058,-200.0,0.0003681,7]
[311162806,1704949839068,-500.0,0.0003681,2]
[311162808,1704949839078,-150.0,0.00036888,2]
[311162809,1704949839090,-180.72886258,0.000369,2]
[311162811,1704949839101,-1000.0,0.000369,2]
[311162814,1704949839111,-150.0,0.00036908,2]
[311162816,1704949839121,-367.65537309,0.00036919,4]
[311162818,1704949839131,-150.0,0.00036946,2]
[311162819,1704949839142,-150.0,0.00036987,2]
[311162822,1704949839152,-219.75630515,0.00036997,2]
[311162824,1704949839163,-5000.0,0.00037,3]
[311162826,1704949839173,-152.05,0.00037,3]
[311162828,1704949839183,-152.05,0.00037,3]
[311162830,1704949839195,-152.05,0.00037,3]
[311162831,1704949839205,-152.05,0.00037,3]
[311162834,1704949839215,-152.05,0.00037,3]
[311162836,1704949839226,-152.05,0.00037,3]
[311162838,1704949839236,-152.05,0.00037,3]
[311162839,1704949839247,-152.05,0.00037,3]
[311162842,1704949839257,-152.05,0.00037,3]
[311162844,1704949839269,-152.05,0.00037,3]
[311162846,1704949839278,-152.05,0.00037,3]
[311162848,1704949839289,-152.05,0.00037,3]
[311162850,1704949839300,-152.05,0.00037,3]
[311162852,1704949839310,-152.05,0.00037,3]
[311162854,1704949839320,-152.05,0.00037,3]
[311162855,1704949839330,-152.05,0.00037,3]
[311162858,1704949839343,-152.05,0.00037,3]
[311162860,1704949839353,-152.05,0.00037,3]
[311162862,1704949839364,-152.05,0.00037,3]
[311162863,1704949839375,-152.05,0.00037,3]
[311162866,1704949839384,-333.33983836,0.00037004,2]
[311162868,1704949839394,-2005.7498842,0.00037004,2]
[311162870,1704949839410,-2697.71553036,0.00037004,2]
[311162872,1704949839421,-13988.26378544,0.00037004,2]
[311162874,1704949839431,-178.27520366,0.00037005,11]
[311162876,1704949839440,-8497.046037,0.00037007,10]
[311162878,1704949839449,-250.07298087,0.00037007,9]
[311162880,1704949839460,-1047.07469252,0.00037007,2]
[311162882,1704949839469,-178.27520365,0.00037021,11]
[311162884,1704949839478,-5000.0,0.00037029,4]
[311162886,1704949839488,-150.0,0.00037075,2]
[311162888,1704949839497,-284.74900422,0.00037086,4]
[311162890,1704949839506,-2790.00115933,0.00037102,2]
[311162892,1704949839516,-2669.4330839,0.00037102,4]
[311162894,1704949839525,-155.0,0.00037102,2]
[311162896,1704949839535,-690.72186391,0.00037102,2]
[311162898,1704949839544,-1223.32284194,0.00037103,2]
[311162900,1704949839553,-288.29485518,0.00037103,4]
[311162902,1704949839562,-5321.43294027,0.00037104,4]
[311162904,1704949839571,-591.55031534,0.00037104,4]
[311162905,1704949839581,-283.58951851,0.00037104,4]
[311162907,1704949839590,-1606.17060449,0.00037104,4]
[311162910,1704949839599,-67952.86380682,0.00037104,4]
[311162912,1704949839611,-1335.67025812,0.00037104,4]
[311163000,1704949840368,-150.0,0.00036567,2]
[311163002,1704949840377,-150.0,0.00036711,2]
[311163004,1704949840386,-150.0,0.00036819,2]
[311163006,1704949840396,-253.17222239,0.00037104,4]
[311163009,1704949840406,-351.88194621,0.00037104,4]
[311163011,1704949840416,-1848.60966923,0.00037105,4]
[311163013,1704949840426,-155.54211339,0.00037105,4]
[311163015,1704949840435,-317.68758824,0.00037105,2]
[311163017,1704949840444,-158.10646054,0.00037105,4]
[311163062,1704949840959,-541.46955914,0.00037105,4]
[311163064,1704949840969,-399.1011347,0.00037105,4]
[311163066,1704949840979,-4310.50841856,0.00037105,4]
[311163068,1704949840989,-156.04443568,0.00037105,4]
[311163070,1704949840999,-550.49551283,0.00037105,4]
[311163072,1704949841008,-167.25354918,0.00037105,4]
[311163074,1704949841016,-291.52834849,0.00037105,4]
[311163076,1704949841027,-155.64819757,0.00037105,4]
[311163078,1704949841037,-156.45381982,0.00037105,2]
[311163080,1704949841046,-2906.05156512,0.00037105,4]
[311163082,1704949841055,-3326.10114817,0.00037105,4]
[311163084,1704949841064,-584.28720468,0.00037105,4]
[311163086,1704949841073,-156.49774634,0.00037105,4]
[311163089,1704949841083,-150.01,0.00037106,2]
[311163091,1704949841092,-3291.64435569,0.00037106,2]
[311163093,1704949841100,-165.98694,0.00037106,2]
[311163095,1704949841109,-249922.93152568,0.00037107,8]
[311163112,1704949841266,-419.68900182,0.00037107,8]
[311163114,1704949841277,-263.66478443,0.00037107,8]
[311163117,1704949841290,-429.29872566,0.00037107,8]
[311163119,1704949841307,-455.19258788,0.00037107,8]
[311163122,1704949841321,-1045.79908187,0.00037107,8]
[311163139,1704949841472,-6684.02094828,0.00037107,8]
[311163141,1704949841485,-1200.0,0.00037107,8]
[311163143,1704949841496,-3077.45338829,0.00037107,8]
[311163145,1704949841507,-500.0,0.00037107,8]
[311163299,1704949842913,-1041.72948904,0.00037107,8]
[311163302,1704949842925,-264.1135013,0.00037107,8]
[311163304,1704949842937,-306.0,0.00037107,8]
[311163308,1704949842960,-1500.0,0.00037107,8]
[311163315,1704949843022,-2246.67879034,0.00037107,8]
[311163317,1704949843033,-1648.23924688,0.00037107,8]
[311163320,1704949843044,-897.50728073,0.00037107,8]
[311163322,1704949843055,-10511.235,0.00037107,8]
[311163324,1704949843066,-2377.19160138,0.00037107,8]
[311163408,1704949845962,-150.01,0.00037106,2]
[311163409,1704949845972,-501.96207511,0.00037106,10]
[311163410,1704949846034,-498.03792489,0.00037106,10]
[311163412,1704949846045,-3291.64435569,0.00037106,2]
[311163414,1704949846054,-123627.03354808,0.00037107,8]
[311163419,1704949846542,-13121.53475442,0.00037107,8]
[311163420,1704949846575,-400.66838458,0.00037106,4]
[311163421,1704949846584,-4.53161542,0.00037107,8]
[311163424,1704950844094,-961.87317765,0.00029686,2]
[311163425,1704950844114,-164.64596943,0.00033392,4]
[311163426,1704950844134,-353.39032026,0.00033393,4]
[311163427,1704950844153,-562.9011394,0.00033394,4]
[311163428,1704950844172,-1000.0,0.00033395,2]
[311163429,1704950844191,-155.0,0.00033396,4]
[311163430,1704950844211,-230.86,0.00033542,2]
[311163431,1704950844230,-3033.15224635,0.0003371,4]
[311163432,1704950844249,-1000.0,0.00034301,4]
[311163433,1704950844269,-1697.58961898,0.00034302,2]
[311163434,1704950844288,-499.99,0.00034314,2]
[311163435,1704950844307,-2478.6934936,0.00034413,2]
[311163436,1704950844325,-1487.04151813,0.0003499,8]
[311163437,1704950844344,-1346.15,0.0003499,2]
[311163438,1704950844363,-170.18,0.00035446,2]
[311163439,1704950844383,-153.1,0.00035466,15]
[311163440,1704950844405,-2000.0,0.00035466,2]
[311163441,1704950844425,-634.86,0.00035468,2]
[311163442,1704950844448,-177.7,0.00035489,2]
[311163443,1704950844468,-295.46,0.0003551,2]
[311163444,1704950844487,-168.89,0.00035527,2]
[311163445,1704950844509,-156.81,0.00035561,2]
[311163446,1704950844531,-164.6,0.00035597,2]
[311163447,1704950844552,-153.99,0.00035616,2]
[311163448,1704950844573,-157.92,0.00035705,2]
[311163449,1704950844593,-704.54,0.00035714,2]
[311163450,1704950844613,-356.75,0.00035727,2]
[311163451,1704950844635,-161.97,0.00035735,2]
[311163452,1704950844656,-230.86,0.00035806,2]
[311163453,1704950844676,-538.06950035,0.00035818,11]
[311163454,1704950844697,-2063.21968029,0.00035818,11]
[311163455,1704950844719,-157.92,0.00035971,2]
[311163456,1704950844739,-683.98548981,0.00035991,4]
[311163457,1704950844760,-762.34704674,0.00036056,4]
[311163458,1704950844781,-161.10815897,0.00036057,2]
[311163459,1704950844802,-151.40111,0.00036148,4]
[311163460,1704950844822,-157.92,0.00036236,2]
[311163461,1704950844843,-151.40111,0.00036248,4]
[311163462,1704950844864,-151.40111,0.00036298,6]
[311163463,1704950844885,-151.40111,0.00036348,4]
[311163464,1704950844906,-151.40111,0.00036398,6]
[311163465,1704950844927,-151.40111,0.00036448,4]
[311163466,1704950844947,-151.40111,0.00036498,6]
[311163467,1704950844967,-1000.0,0.000365,6]
[311163468,1704950844990,-1000.0,0.000365,6]
[311163469,1704950845009,-1000.0,0.000365,6]
[311163470,1704950845029,-1000.0,0.000365,6]
[311163471,1704950845051,-1000.0,0.000365,6]
[311163472,1704950845071,-1000.0,0.000365,6]
[311163473,1704950845090,-1000.0,0.000365,6]
[311163474,1704950845113,-157.92,0.00036502,2]
[311163475,1704950845134,-151.40111,0.00036548,4]
[311163476,1704950845159,-164.6,0.00036575,2]
[311163477,1704950845180,-151.40111,0.00036598,6]
[311163478,1704950845202,-1608.285449,0.000366,23]
[311163479,1704950845224,-151.40111,0.00036648,4]
[311163480,1704950845248,-151.40111,0.00036698,6]
[311163481,1704950845269,-153.99,0.00036729,2]
[311163482,1704950845291,-151.40111,0.00036748,4]
[311163483,1704950845312,-157.92,0.00036768,2]
[311163484,1704950845333,-151.40111,0.00036798,6]
[311163485,1704950845353,-1050.89254855,0.000368,14]
[311163486,1704950845375,-1010.0,0.000368,7]
[311163487,1704950845396,-200.0,0.00036809,10]
[311163488,1704950845416,-800.0,0.00036809,10]
[311163489,1704950845435,-200.0,0.0003681,7]
[311163490,1704950845455,-200.0,0.0003681,10]
[311163491,1704950845474,-800.0,0.0003681,10]
[311163492,1704950845494,-151.40111,0.00036848,4]
[311163493,1704950845514,-165.52,0.00036878,2]
[311163494,1704950845534,-151.40111,0.00036898,6]
[311163495,1704950845554,-1000.0,0.00036921,2]
[311163496,1704950845573,-1000.0,0.00036921,2]
[311163497,1704950845592,-1000.0,0.00036921,2]
[311163498,1704950845611,-1000.0,0.00036921,2]
[311163499,1704950845631,-1000.0,0.00036921,2]
[311163500,1704950845650,-1000.0,0.00036921,2]
[311163501,1704950845670,-572.0966,0.00036921,2]
[311163502,1704950845691,-161.10815897,0.00036929,2]
[311163503,1704950845711,-151.40111,0.00036998,6]
[311163504,1704950845731,-151.40111,0.00036998,4]
[311163505,1704950845751,-5000.0,0.00037,3]
[311163506,1704950845773,-152.07,0.00037,3]
[311163507,1704950845795,-152.07,0.00037,3]
[311163508,1704950845821,-152.07,0.00037,3]
[311163509,1704950845849,-152.07,0.00037,3]
[311163510,1704950845873,-152.07,0.00037,3]
[311163511,1704950845896,-152.07,0.00037,3]
[311163512,1704950845922,-152.07,0.00037,3]
[311163513,1704950845944,-152.07,0.00037,3]
[311163514,1704950845965,-152.07,0.00037,3]
[311163515,1704950845988,-152.07,0.00037,3]
[311163516,1704950846009,-152.07,0.00037,3]
[311163517,1704950846030,-152.07,0.00037,3]
[311163518,1704950846052,-46.46021784,0.00037,3]
[311163521,1704950950561,-155.0,0.000333,4]
[311163528,1704950965576,350.0,0.00025,3]
[311163529,1704950966656,400.0,0.00027,3]
[311163536,1704950970982,155.0,0.000333,4]
[311163541,1704950988990,251.44112676,0.000333,4]
[311163564,1704951032015,-553.09839258,0.00035815,4]
[311163571,1704951032071,-446.90160742,0.00035815,4]
[311163573,1704951032080,-740.79886005,0.00035816,10]
[311163579,1704951032126,-259.20113995,0.00035816,10]
[311163581,1704951032135,-155.0,0.00035817,4]
[311163583,1704951032145,-206.32196803,0.00035818,11]
[311163585,1704951032154,-153.99,0.00035946,2]
[311163587,1704951032163,-152.84,0.00036095,2]
[311163589,1704951032172,-41.25298669,0.000369,2]
[311163591,1704951032188,-119.85517229,0.000369,2]
[311163593,1704951032197,-150.0,0.00036956,2]
[311163595,1704951032206,-105.60978216,0.00037,3]
[311163597,1704951032215,-152.07,0.00037,3]
[311163599,1704951032223,-152.07,0.00037,3]
[311163601,1704951032233,-152.07,0.00037,3]
[311163603,1704951032242,-1000.0,0.00037,7]
[311163605,1704951032251,-106.10325532,0.00037,7]
[311163608,1704951032263,-893.89674468,0.00037,7]
[311163610,1704951032272,-1031.0,0.00037,7]
[311163612,1704951032282,-1172.04210241,0.00037,3]
[311163615,1704951032300,-980.74463861,0.00037,3]
[311163621,1704951032346,-722.81901415,0.00037,3]
[311163646,1704951039037,-155.0,0.00035815,4]
[311163647,1704951039048,-2124.39424483,0.00037,3]
[311163648,1704951039059,-2000.0,0.00037,2]
[311163649,1704951039069,-196.87026878,0.00037,38]
[311163650,1704951039078,-1064.46325397,0.0003703,2]
[311163651,1704951039088,-216.72991681,0.0003703,9]
[311163652,1704951039098,-780.12263183,0.0003703,8]
[311163653,1704951039107,-157.92,0.00037034,2]
[311163654,1704951039115,-229.20918251,0.00037086,4]
[311163655,1704951039126,-2199.60450878,0.00037095,2]
[311163656,1704951039136,-819.44755428,0.00037097,14]
[311163657,1704951039146,-253.36,0.00037097,10]
[311163658,1704951039155,-211.13,0.00037097,10]
[311163659,1704951039164,-175.94,0.00037097,10]
[311163660,1704951039174,-879.73,0.00037097,10]
[311163661,1704951039183,-151.40111,0.00037098,6]
[311163662,1704951039194,-151.40111,0.00037098,4]
[311163663,1704951039205,-500.0,0.000371,3]
[311163664,1704951039213,-1500.0,0.000371,23]
[311163665,1704951039222,-385.2203014,0.00037103,4]
[311163666,1704951039231,-5466.12579228,0.00037103,2]
[311163667,1704951039240,-155.0,0.00037103,2]
[311163668,1704951039249,-934.18082672,0.00037104,4]
[311163669,1704951039260,-1951.74448912,0.00037105,4]
[311163670,1704951039269,-262.24867219,0.00037105,4]
[311163671,1704951039278,-160.43240217,0.00037105,4]
[311163672,1704951039287,-4731.65760839,0.00037105,4]
[311163673,1704951039297,-255.10043387,0.00037105,4]
[311163674,1704951039307,-942.48901101,0.00037105,4]
[311163675,1704951039317,-288.29485518,0.00037105,4]
[311163676,1704951039326,-305.23481685,0.00037105,4]
[311163677,1704951039334,-685.14516987,0.00037105,4]
[311163678,1704951039346,-5421.82685109,0.00037105,4]
[311163679,1704951039355,-340.54151146,0.00037105,4]
[311163680,1704951039365,-3959.83035726,0.00037105,2]
[311163681,1704951039374,-2095.44739364,0.00037105,4]
[311163682,1704951039383,-160.54264898,0.00037105,4]
[311163683,1704951039394,-581.18512785,0.00037105,4]
[311163684,1704951039405,-600.35308665,0.00037105,4]
[311163685,1704951039415,-207.86968869,0.00037105,2]
[311163686,1704951039424,-165.22306369,0.00037105,4]
[311163687,1704951039435,-1730.64533106,0.00037105,2]
[311163688,1704951039444,-485.93276131,0.00037105,4]
[311163689,1704951039454,-770.26304037,0.00037105,4]
[311163690,1704951039464,-246.00297839,0.00037105,4]
[311163691,1704951039601,-6789.7438104,0.00037105,2]
[311163692,1704951039617,-849.09276111,0.00037105,2]
[311163693,1704951039627,-150.01,0.00037106,2]
[311163694,1704951039636,-3291.64435569,0.00037106,2]
[311163695,1704951039646,-1315.81648897,0.00037106,4]
[311163696,1704951039655,-165.98694,0.00037106,2]
[311163697,1704951039664,-129099.46214966,0.00037107,8]
[311163698,1704951039673,-534.81123684,0.00037107,4]
[311163699,1704951039682,-159.41659021,0.0003712,2]
[311163700,1704951039692,-1000.0,0.0003713,60]
[311163701,1704951039701,-476383.34306419,0.0003713,30]
[311163775,1704951041229,-8094.10953144,0.0003713,30]
[311163780,1704951041286,-1374.41632297,0.0003713,30]
[311163781,1704951041344,-14148.1310814,0.0003713,30]
[311163782,1704951041353,-8000.0,0.0003713,120]
[311163783,1704951041363,-153.1115435,0.0003713,120]
[311163784,1704951041372,-151.40111,0.00037148,4]
[311163785,1704951041381,-152.84,0.00037149,2]
[311163786,1704951041391,-151.40111,0.00037198,6]
[311163787,1704951041400,-150.0,0.00037223,2]
[311163788,1704951041410,-151.40111,0.00037248,4]
[311163789,1704951041420,-153.99,0.00037249,2]
[311163790,1704951041429,-150.0,0.00037284,2]
[311163791,1704951041438,-150.0,0.00037292,2]
[311163792,1704951041447,-151.40111,0.00037298,6]
[311163793,1704951041456,-157.92,0.00037299,2]
[311163794,1704951041466,-150.0,0.00037307,2]
[311163795,1704951041475,-159.0,0.00037321,5]
[311163796,1704951041484,-151.40111,0.00037348,4]
[311163797,1704951041493,-1825.71362405,0.00037379,14]
[311163798,1704951041502,-927.09773512,0.00037379,2]
[311163800,1704951041517,-433.11449225,0.00037379,2]
[311163802,1704951041529,-139.78777263,0.00037379,2]
[311163803,1704951041538,-150.0,0.00037385,2]
[311163804,1704951041547,-151.40111,0.00037398,6]
[311163805,1704951041556,-185.27,0.00037416,2]
[311163806,1704951041565,-1500.0,0.00037491,2]
[311163807,1704951041574,-151.40111,0.00037498,6]
[311163808,1704951041583,-1000.0,0.000375,7]
[311163809,1704951041592,-1000.0,0.000375,7]
[311163810,1704951041601,-150.0,0.0003753,2]
[311163811,1704951041610,-157.92,0.00037565,2]
[311163812,1704951041619,-151.40111,0.00037598,6]
[311163813,1704951041628,-1941.0,0.000376,7]
[311163814,1704951041637,-1407.0,0.0003762,2]
[311163815,1704951041647,-22.28259044,0.00037641,2]
[311163816,1704951043807,-565.19761078,0.00035992,10]
[311163817,1704951043863,-434.80238922,0.00035992,10]
[311163818,1704951043873,-127.71740956,0.00037641,2]
[311163819,1704951043884,-162.94340613,0.00037647,7]
[311163820,1704951043897,-161.10815898,0.00037657,2]
[311163821,1704951043906,-151.40111,0.00037698,6]
[311163822,1704951043916,-150.0,0.00037736,2]
[311163823,1704951043925,-645.84237859,0.00037753,5]
[311163830,1704951046195,-1000.0,0.00037105,4]
[311163831,1704951046204,-195.14197758,0.00037106,2]
[311163832,1704951046214,-606.92796242,0.00037106,2]
[311163833,1704951046303,-1744.26214603,0.00037106,2]
[311163834,1704951046359,-278.24112876,0.00037106,2]
[311163835,1704951098336,207.77,0.00033426,2]
[311163836,1704951603516,810.37,0.00031,30]
[311163837,1704951619883,810.37,0.00031,30]
[311163838,1704951632512,3185.89838635,0.00026743,2]
[311163839,1704951654506,3186.46864652,0.00026743,2]
[311163840,1704951664187,155.0,0.00026743,2]
[311163841,1704951666224,1891.70798367,0.00026743,2]
[311163842,1704951667337,13061.13989886,0.00026743,2]
[311163843,1704951667575,1032.18354327,0.00026743,2]
[311163844,1704951667603,3198.47182879,0.00026743,2]
[311163845,1704951668511,1385.60201423,0.00026605,2]
[311163846,1704951668844,7415.9702804,0.00026743,2]
[311163847,1704951670595,543.57792271,0.00026743,2]
[311163848,1704951678840,5185.3168697,0.00026743,2]
[311163849,1704951679579,3198.47182879,0.00026743,2]
[311163850,1704951680206,204.35761727,0.00026743,2]
[311163851,1704951682676,7415.9702804,0.00026743,2]
[311163852,1704951684221,454.86612135,0.00026743,2]
[311163853,1704951685608,1032.18354327,0.00026743,2]
[311163854,1704951687286,500.0,0.00026743,2]
[311163855,1704951687348,50499.59616864,0.00026743,2]
[311163856,1704951688035,4060.46600225,0.00026743,2]
[311163857,1704951690604,544.63786016,0.00026743,2]
[311163858,1704951694362,855.86394758,0.00026743,2]
[311163859,1704951696846,1328.58837235,0.00026743,2]
[311163860,1704951701347,50499.59616864,0.00026743,2]
[311163861,1704951701597,181.80905086,0.00026743,2]
[311163862,1704951703566,1034.65107584,0.00026743,2]
[311163863,1704951704676,7415.9702804,0.00026743,2]
[311163864,1704951705264,500.0,0.00026743,2]
[311163865,1704951706034,4060.46600225,0.00026743,2]
[311163866,1704951708255,165.18,0.00023598,2]
[311163867,1704951710367,259.91711728,0.00026743,2]
[311163868,1704951719350,50499.59616864,0.00026743,2]
[311163869,1704951722041,2115.50278717,0.00026743,2]
[311163870,1704951726707,7415.9702804,0.00026743,2]
[311163871,1704951737364,23088.34776017,0.00026743,2]
[311163872,1704951740049,2115.50278717,0.00026743,2]
[311163873,1704951746654,6619.59453898,0.00026743,2]
[311163874,1704951758043,2115.50278717,0.00026743,2]
[311163875,1704951776050,2115.50278717,0.00026743,2]
[311163876,1704951794093,2115.50278717,0.00026743,2]
[311163877,1704951816066,2115.50278717,0.00026743,2]
[311163878,1704951836081,2115.50278717,0.00026743,2]
[311163879,1704951843506,-419.33476208,0.0002705,2]
[311163880,1704951843529,-580.66523792,0.00027051,2]
[311163881,1704951843952,-269.62162648,0.0002705,2]
[311163882,1704951843972,-730.37837352,0.00027051,2]
[311163883,1704951844618,-650.81684476,0.0002705,2]
[311163884,1704951844638,-349.18315524,0.00027051,2]
[311163885,1704951846830,-270.43975547,0.00027049,2]
[311163886,1704951846850,-150.0,0.0002705,2]
[311163887,1704951846869,-454.40036032,0.00027051,2]
[311163888,1704951846889,-125.15988421,0.00027186,2]
[311163889,1704951849650,-604.2803618,0.00027186,2]
[311163890,1704951849671,-395.7196382,0.00027186,2]
[311163891,1704951852008,-1000.0,0.0002705,2]
[311163892,1704951852080,2115.50278717,0.00026743,2]
[311163893,1704951854395,-1000.0,0.0002705,2]
[311163894,1704951856350,420.47400216,0.00026193,2]
[311163895,1704951864501,247.56908475,0.00023107,2]
[311163896,1704951874084,2115.50278717,0.00026743,2]
[311163897,1704951892090,2115.50278717,0.00023107,2]
[311163898,1704951912087,2115.50278717,0.00023107,2]
[311163899,1704951932098,194.14508742,0.00023107,2]
[311163900,1704952030240,-902.14406412,0.00027036,2]
[311163901,1704952126915,326.72373977,0.00026763,2]
[311163902,1704952145114,-301.84442122,0.00027025,2]
[311163903,1704952145135,-2616.61714692,0.00027025,2]
[311163904,1704952145155,-313.85189118,0.00027026,2]
[311163905,1704952145176,-524.01619295,0.00027026,2]
[311163906,1704952145196,-155.0,0.00027026,2]
[311163907,1704952145215,-270.43975547,0.00027027,2]
[311163908,1704952145236,-1224.21852905,0.00027028,2]
[311163909,1704952145258,-269.62162648,0.00027028,2]
[311163910,1704952145279,-1000.0,0.00027029,2]
[311163911,1704952145299,-1042.57746309,0.0002703,2]
[311163912,1704952145319,-19117.31456255,0.0002703,2]
[311163913,1704952152154,-1000.0,0.00027024,2]
[311163914,1704952152176,-42943.64418819,0.00027029,2]
[311163915,1704952152197,-5194.85220679,0.0002703,2]
[311163916,1704952152217,-266.47788631,0.00027035,2]
[311163917,1704952152238,-2134.72355355,0.00027044,2]
[311163918,1704952152259,-436.11823403,0.00027046,2]
[311163919,1704952152280,-3274.47470027,0.00027183,2]
[311163920,1704952152301,-651.89476975,0.00027185,2]
[311163921,1704952152321,-7920.37095351,0.00027187,2]
[311163922,1704952152341,-484.57131125,0.00027714,2]
[311163923,1704952152363,-175.42641294,0.00027715,2]
[311163924,1704952152386,-1128.03515673,0.00027719,2]
[311163925,1704952152407,-3281.95867427,0.00028007,2]
[311163926,1704952152427,-162.01617225,0.00028151,2]
[311163927,1704952152448,-335.03,0.00028184,2]
[311163928,1704952152467,-1807.7,0.00028221,2]
[311163929,1704952152486,-200.0,0.00028226,2]
[311163930,1704952152509,-156.81,0.00028287,2]
[311163931,1704952152529,-218.03077996,0.00028307,2]
[311163932,1704952152549,-152.45,0.00028927,2]
[311163933,1704952152570,-150.0,0.00028986,2]
[311163934,1704952152592,-156.81,0.00029024,2]
[311163935,1704952152614,-236.37,0.00029257,2]
[311163936,1704952152634,-2000.0,0.00029257,2]
[311163937,1704952152656,-169.76,0.00029257,2]
[311163938,1704952152677,-233.08,0.00029703,2]
[311163939,1704952152698,-156.81,0.00029761,2]
[311163940,1704952152719,-200.0,0.00030004,2]
[311163941,1704952152739,-745.24,0.00030082,2]
[311163942,1704952152761,-513.6,0.00030149,2]
[311163943,1704952152783,-233.08,0.00030681,2]
[311163944,1704952152803,-155.19155234,0.0003075,4]
[311163945,1704952160964,471.49643621,0.00027027,2]
[311163946,1704952170085,-526.07382238,0.00031657,4]
[311163947,1704952170103,-269.96379977,0.00031658,4]
[311163948,1704952170121,-155.0,0.00031658,4]
[311163949,1704952170140,-301.60349902,0.00031659,2]
[311163950,1704952170158,-421.6820035,0.00031659,4]
[311163951,1704952170178,-271.93795035,0.00031659,2]
[311163952,1704952170201,-233.08,0.0003166,2]
[311163953,1704952170220,-250.0,0.00032036,2]
[311163954,1704952170239,-850.85922498,0.00032074,4]
[311163955,1704952179880,1000.0,0.00031111,2]
[311163956,1704952203468,150.0,0.00031111,2]
[311163957,1704952203663,150.0,0.00031111,2]
[311163958,1704952203849,291.88756286,0.00031111,2]
[311163965,1704952213878,1000.0,0.0003111,2]
[311164005,1704952233800,-297.2656,0.00031975,2]
[311164006,1704952233809,-348.07329433,0.00032069,2]
[311164007,1704952233819,-155.0,0.00032073,4]
[311164008,1704952233829,-421.6820035,0.00032073,4]
[311164009,1704952233838,-1093.32208457,0.00032074,4]
[311164010,1704952234028,-272.11036578,0.00032074,4]
[311164011,1704952234040,-6951.55076949,0.00032074,4]
[311164012,1704952234060,-1847.4768,0.00032074,4]
[311164013,1704952234085,1000.0,0.0003111,2]
[311164014,1704952234097,-937.11713582,0.00032074,4]
[311164015,1704952234109,-2310.05,0.00032074,4]
[311164016,1704952234121,-6572.75988181,0.00032074,4]
[311164017,1704952234135,-1810.89364178,0.00032074,4]
[311164018,1704952234165,-1657.94584841,0.00032074,4]
[311164019,1704952234175,-33695.02925544,0.00032074,4]
[311164020,1704952234184,-23900.0,0.00032075,2]